[Event "Int SVK-ch Open 2020"]
[Site "Drienica"]
[Date "2020.08.07"]
[Round "1.15"]
[White "Soldan Jan"]
[Black "Kravec Patrik"]
[Result "0-1"]
[ECO "B56"]
[WhiteElo "1783"]
[BlackElo "2119"]
[Annotator "ChessBase"]
[PlyCount "58"]
[EventDate "2020.08.07"]
[EventType "swiss"]
[EventCountry "SVK"]
[SourceTitle "playchess.com"]
[Source "ChessBase"]
[SourceQuality "1"]
[TimeControl "40/5400+30:1800+30"]

1. e4 {[%emt 0:00:00]} c5 {[%emt 0:00:00]} 2. Nf3 {[%emt 0:00:00]} Nc6 {[%emt 0:00:26]} 3. d4 {[%emt 0:00:00]} cxd4 {[%emt 0:00:11]} 4. Nxd4 {[%emt 0:00:09]} Nf6 {[%emt 0:00:35]} 5. Nc3 {[%emt 0:00:06]} d6 {[%emt 0:00:04]} 6. Be3 {[%emt 0:03:27]} Bd7 {[%emt 0:01:36]} 7. Bd3 {[%emt 0:02:33]} Ng4 {[%emt 0:01:09]} 8. O-O {[%emt 0:02:40]} Nxe3 {[%emt 0:04:53]} 9. fxe3 {[%emt 0:00:09]} Ne5 {[%emt 0:00:39]} 10. Nf3 {[%emt 0:05:53]} Ng4 {[%emt 0:07:18]} 11. Qd2 {[%emt 0:00:51]} e6 {[%emt 0:11:13]} 12. h3 {[%emt 0:00:17]} Nf6 {[%emt 0:06:31]} 13. e5 {[%emt 0:00:38]} dxe5 {[%emt 0:05:39]} 14. Nxe5 {[%emt 0:00:21]} Bc6 {[%emt 0:03:10]} 15. Nxc6 {[%emt 0:05:25]} bxc6 {[%emt 0:00:26]} 16. Rf3 {[%emt 0:04:42]} Be7 {[%emt 0:01:20]} 17. Raf1 {[%emt 0:00:15]} O-O {[%emt 0:00:45]} 18. Qf2 {[%emt 0:00:28]} Rb8 {[%emt 0:05:26]} 19. a3 {[%emt 0:07:06]} Rxb2 {[%emt 0:02:49]} 20. Qh4 {[%emt 0:00:51]} h6 {[%emt 0:01:35]} 21. Rg3 {[%emt 0:04:42]} Kh8 {[%emt 0:03:25]} 22. Rxf6 {[%emt 0:12:21]} Bxf6 {[%emt 0:00:50]} 23. Qe4 {[%emt 0:00:08]} g6 {[%emt 0:01:33]} 24. Rxg6 {[%emt 0:00:12]} fxg6 {[%emt 0:02:28]} 25. Qxg6 {[%emt 0:00:08]} Qe7 {[%emt 0:04:38]} 26. Qxh6+ {[%emt 0:01:32]} Kg8 {[%emt 0:00:15]} 27. Ne4 {[%emt 0:03:57]} Qg7 {[%emt 0:01:51]} 28. Nxf6+ {[%emt 0:00:36]} Rxf6 {[%emt 0:00:13]} 29. Bh7+ {[%emt 0:00:58]} Kf8 {[%emt 0:01:45]} 0-1

[Event "Int SVK-ch Open 2020"]
[Site "Drienica"]
[Date "2020.08.07"]
[Round "1.15"]
[White "Ihnat, Marek"]
[Black "Majek, Kacper"]
[Result "0-1"]
[ECO "C91"]
[WhiteElo "1490"]
[BlackElo "1970"]
[Annotator "ChessBase"]
[PlyCount "66"]
[EventDate "2020.08.07"]
[EventType "swiss"]
[EventCountry "SVK"]
[SourceTitle "playchess.com"]
[Source "ChessBase"]
[SourceQuality "1"]
[TimeControl "40/5400+30:1800+30"]

1. e4 {[%emt 0:00:00]} e5 {[%emt 0:00:00]} 2. Nf3 {[%emt 0:00:00]} Nc6 {[%emt 0:00:00]} 3. Bb5 {[%emt 0:00:05]} a6 {[%emt 0:00:00]} 4. Ba4 {[%emt 0:00:06]} Nf6 {[%emt 0:00:00]} 5. O-O {[%emt 0:00:54]} Be7 {[%emt 0:00:00]} 6. Re1 {[%emt 0:00:17]} b5 {[%emt 0:00:00]} 7. Bb3 {[%emt 0:00:07]} O-O {[%emt 0:00:06]} 8. c3 {[%emt 0:00:54]} d6 {[%emt 0:00:05]} 9. d4 {[%emt 0:02:06]} Bg4 {[%emt 0:00:22]} 10. Bc2 {[%emt 0:03:30]} Bxf3 {[%emt 0:02:13]} 11. gxf3 {[%emt 0:00:54]} Nh5 {[%emt 0:01:13]} 12. Kh1 {[%emt 0:01:12]} Bg5 {[%emt 0:00:47]} 13. Be3 {[%emt 0:02:29]} Bf4 {[%emt 0:00:27]} 14. Rg1 {[%emt 0:02:17]} Qh4 {[%emt 0:01:40]} 15. Bxf4 {[%emt 0:00:57]} Nxf4 {[%emt 0:00:08]} 16. d5 {[%emt 0:02:14]} Nh3 {[%emt 0:01:15]} 17. Rg2 {[%emt 0:02:59]} Ne7 {[%emt 0:01:07]} 18. Qe1 {[%emt 0:04:45]} f5 {[%emt 0:10:04]} 19. Nd2 {[%emt 0:02:05]} Nf4 {[%emt 0:05:05]} 20. Rg3 {[%emt 0:01:00]} Rf6 {[%emt 0:01:27]} 21. Qg1 {[%emt 0:06:16]} Nh5 {[%emt 0:02:26]} 22. Rg2 {[%emt 0:02:47]} Qf4 {[%emt 0:12:02]} 23. Rd1 {[%emt 0:04:02]} Kh8 {[%emt 0:08:12]} 24. exf5 {[%emt 0:04:36]} Nxf5 {[%emt 0:03:06]} 25. Rg4 {[%emt 0:00:36]} Qh6 {[%emt 0:03:05]} 26. Ne4 {[%emt 0:02:27]} Rff8 {[%emt 0:01:59]} 27. Ng5 {[%emt 0:20:50]} Nf4 {[%emt 0:00:38]} 28. Bxf5 {[%emt 0:11:10]} Rxf5 {[%emt 0:00:07]} 29. Qg3 {[%emt 0:10:42]} Raf8 {[%emt 0:00:35]} 30. Rd2 {[%emt 0:09:46]} Rxg5 {[%emt 0:02:28]} 31. Rxg5 {[%emt 0:01:41]} Nh3 {[%emt 0:00:06]} 32. Rxg7 {[%emt 0:00:00]} Qxd2 {[%emt 0:00:00]} 33. Qxh3 {[%emt 0:00:00]} Kxg7 {[%emt 0:00:00]} 0-1

[Event "Int SVK-ch Open 2020"]
[Site "Drienica"]
[Date "2020.08.07"]
[Round "1.16"]
[White "Verbovsky Michal"]
[Black "Elias David"]
[Result "1-0"]
[ECO "A08"]
[WhiteElo "2113"]
[BlackElo "1781"]
[Annotator "ChessBase"]
[PlyCount "110"]
[EventDate "2020.08.07"]
[EventType "swiss"]
[EventCountry "SVK"]
[SourceTitle "playchess.com"]
[Source "ChessBase"]
[SourceQuality "1"]
[TimeControl "40/5400+30:1800+30"]

1. Nf3 {[%emt 0:00:00]} c5 {[%emt 0:00:57]} 2. g3 {[%emt 0:00:24]} d5 {[%emt 0:00:16]} 3. Bg2 {[%emt 0:00:21]} Nc6 {[%emt 0:00:08]} 4. O-O {[%emt 0:00:26]} e5 {[%emt 0:01:16]} 5. d3 {[%emt 0:00:40]} Nf6 {[%emt 0:01:58]} 6. Bg5 {[%emt 0:01:53]} Be7 {[%emt 0:01:46]} 7. Nbd2 {[%emt 0:07:43]} Be6 {[%emt 0:07:34]} 8. c3 {[%emt 0:04:18]} O-O {[%emt 0:06:36]} 9. Bxf6 {[%emt 0:01:15]} Bxf6 {[%emt 0:00:30]} 10. Qc2 {[%emt 0:03:25]} Qd7 {[%emt 0:03:46]} 11. Rfe1 {[%emt 0:16:09]} Rfd8 {[%emt 0:02:27]} 12. Rad1 {[%emt 0:01:22]} Rac8 {[%emt 0:03:15]} 13. h4 {[%emt 0:24:13]} h6 {[%emt 0:14:24]} 14. a4 {[%emt 0:03:10]} a6 {[%emt 0:10:11]} 15. e4 {[%emt 0:21:32]} d4 {[%emt 0:03:34]} 16. Nc4 {[%emt 0:02:41]} Qc7 {[%emt 0:02:12]} 17. Na3 {[%emt 0:01:06]} dxc3 {[%emt 0:04:24]} 18. bxc3 {[%emt 0:00:38]} Na5 {[%emt 0:06:11]} 19. c4 {[%emt 0:01:14]} Nc6 {[%emt 0:01:15]} 20. Qc3 {[%emt 0:01:01]} Nd4 {[%emt 0:01:02]} 21. Nxd4 {[%emt 0:01:42]} cxd4 {[%emt 0:00:18]} 22. Qb3 {[%emt 0:00:55]} Bd7 {[%emt 0:07:30]} 23. Nc2 {[%emt 0:01:29]} Qc6 {[%emt 0:02:08]} 24. a5 {[%emt 0:02:38]} Qa4 {[%emt 0:08:25]} 25. Qxa4 {[%emt 0:00:31]} Bxa4 {[%emt 0:00:02]} 26. Rd2 {[%emt 0:00:35]} Rc5 {[%emt 0:02:15]} 27. Ra1 {[%emt 0:00:29]} Bxc2 {[%emt 0:00:59]} 28. Rxc2 {[%emt 0:00:10]} Rd7 {[%emt 0:05:49]} 29. Bh3 {[%emt 0:00:22]} Rdc7 {[%emt 0:00:14]} 30. Rb2 {[%emt 0:00:45]} Kf8 {[%emt 0:01:14]} 31. Kg2 {[%emt 0:00:23]} Bd8 {[%emt 0:00:49]} 32. Bg4 {[%emt 0:00:56]} Re7 {[%emt 0:01:16]} 33. Rba2 {[%emt 0:00:38]} g6 {[%emt 0:00:39]} 34. Bh3 {[%emt 0:01:16]} f6 {[%emt 0:00:31]} 35. Kf3 {[%emt 0:00:24]} Rf7 {[%emt 0:00:08]} 36. Be6 {[%emt 0:00:31]} Re7 {[%emt 0:00:16]} 37. Bd5 {[%emt 0:00:10]} f5 {[%emt 0:00:28]} 38. Ra4 {[%emt 0:00:57]} Ke8 {[%emt 0:01:05]} 39. h5 {[%emt 0:00:30]} fxe4+ {[%emt 0:00:43]} 40. Kxe4 {[%emt 0:00:08]} gxh5 {[%emt 0:01:16]} 41. Kf5 {[%emt 0:14:45]} Kf8 {[%emt 0:10:05]} 42. Kg6 {[%emt 0:12:42]} h4 {[%emt 0:03:33]} 43. gxh4 {[%emt 0:00:53]} Rg7+ {[%emt 0:00:57]} 44. Kh5 {[%emt 0:00:13]} Rh7 {[%emt 0:04:22]} 45. R4a2 {[%emt 0:00:43]} Rg7 {[%emt 0:02:48]} 46. Ra4 {[%emt 0:01:22]} Rh7 {[%emt 0:04:25]} 47. R4a3 {[%emt 0:00:12]} Rg7 {[%emt 0:00:58]} 48. R3a2 {[%emt 0:00:26]} Rh7 {[%emt 0:01:24]} 49. Kg6 {[%emt 0:00:56]} Rg7+ {[%emt 0:01:49]} 50. Kh5 {[%emt 0:00:44]} Rh7 {[%emt 0:01:53]} 51. Kg6 {[%emt 0:00:03]} Rg7+ {[%emt 0:00:05]} 52. Kf5 {[%emt 0:00:27]} Re7 {[%emt 0:01:44]} 53. Rg1 {[%emt 0:00:58]} Rg7 {[%emt 0:01:15]} 54. Rga1 {[%emt 0:00:15]} Re7 {[%emt 0:00:43]} 55. h5 {[%emt 0:02:55]} Rg7 {[%emt 0:01:42]} 1-0

[Event "Int SVK-ch Open 2020"]
[Site "Drienica"]
[Date "2020.08.07"]
[Round "1.16"]
[White "Svobodova, Michaela"]
[Black "Gulas, Gabriel"]
[Result "1-0"]
[ECO "C10"]
[WhiteElo "1964"]
[BlackElo "1472"]
[Annotator "ChessBase"]
[PlyCount "59"]
[EventDate "2020.08.07"]
[EventType "swiss"]
[EventCountry "SVK"]
[SourceTitle "playchess.com"]
[Source "ChessBase"]
[SourceQuality "1"]
[TimeControl "40/5400+30:1800+30"]

1. e4 {[%emt 0:00:00]} e6 {[%emt 0:00:00]} 2. d4 {[%emt 0:00:01]} d5 {[%emt 0:00:00]} 3. Nc3 {[%emt 0:00:36]} dxe4 {[%emt 0:00:22]} 4. Nxe4 {[%emt 0:00:14]} Bd7 {[%emt 0:00:42]} 5. Nf3 {[%emt 0:02:08]} Bc6 {[%emt 0:00:15]} 6. Ned2 {[%emt 0:04:13]} Nd7 {[%emt 0:03:42]} 7. Bd3 {[%emt 0:03:10]} Ngf6 {[%emt 0:02:19]} 8. O-O {[%emt 0:01:38]} Be7 {[%emt 0:04:15]} 9. Nc4 {[%emt 0:03:40]} b6 {[%emt 0:02:42]} 10. Nce5 {[%emt 0:05:37]} Nxe5 {[%emt 0:01:33]} 11. Nxe5 {[%emt 0:03:49]} Bb7 {[%emt 0:00:24]} 12. Bb5+ {[%emt 0:02:34]} Kf8 {[%emt 0:02:14]} 13. Nc6 {[%emt 0:05:36]} Qd6 {[%emt 0:05:46]} 14. Nxe7 {[%emt 0:09:19]} Kxe7 {[%emt 0:01:15]} 15. a4 {[%emt 0:10:35]} Rhd8 {[%emt 0:05:15]} 16. c3 {[%emt 0:04:54]} Kf8 {[%emt 0:06:31]} 17. b3 {[%emt 0:02:31]} Kg8 {[%emt 0:01:42]} 18. Re1 {[%emt 0:02:11]} c5 {[%emt 0:02:18]} 19. Be3 {[%emt 0:03:07]} Nd5 {[%emt 0:02:13]} 20. Qg4 {[%emt 0:09:20]} Nxc3 {[%emt 0:03:30]} 21. Bg5 {[%emt 0:05:07]} Qxd4 {[%emt 0:03:41]} 22. Qh3 {[%emt 0:02:19]} Rd6 {[%emt 0:06:15]} 23. Bc4 {[%emt 0:03:24]} Bd5 {[%emt 0:07:12]} 24. Be3 {[%emt 0:02:03]} Qf6 {[%emt 0:01:31]} 25. Qg3 {[%emt 0:04:03]} Rd7 {[%emt 0:06:09]} 26. Rac1 {[%emt 0:03:35]} Bxc4 {[%emt 0:01:01]} 27. bxc4 {[%emt 0:00:25]} Rad8 {[%emt 0:03:26]} 28. Bg5 {[%emt 0:03:28]} Ne2+ {[%emt 0:00:23]} 29. Rxe2 {[%emt 0:00:29]} Rd1+ {[%emt 0:00:11]} 30. Re1 {[%emt 0:00:17]} 1-0

[Event "Int SVK-ch Open 2020"]
[Site "Drienica"]
[Date "2020.08.07"]
[Round "1.17"]
[White "Tomcikova Zuzana"]
[Black "Ferkova Dominika"]
[Result "1/2-1/2"]
[ECO "B19"]
[WhiteElo "1776"]
[BlackElo "2111"]
[Annotator "ChessBase"]
[PlyCount "91"]
[EventDate "2020.08.07"]
[EventType "swiss"]
[EventCountry "SVK"]
[SourceTitle "playchess.com"]
[Source "ChessBase"]
[SourceQuality "1"]
[TimeControl "40/5400+30:1800+30"]

1. e4 {[%emt 0:00:00]} c6 {[%emt 0:00:00]} 2. d4 {[%emt 0:00:00]} d5 {[%emt 0:00:00]} 3. Nc3 {[%emt 0:00:02]} dxe4 {[%emt 0:00:00]} 4. Nxe4 {[%emt 0:00:08]} Bf5 {[%emt 0:00:00]} 5. Ng3 {[%emt 0:00:11]} Bg6 {[%emt 0:00:01]} 6. h4 {[%emt 0:00:38]} h6 {[%emt 0:00:07]} 7. h5 {[%emt 0:00:08]} Bh7 {[%emt 0:00:04]} 8. Nf3 {[%emt 0:00:49]} e6 {[%emt 0:02:22]} 9. Bd3 {[%emt 0:01:23]} Bxd3 {[%emt 0:00:20]} 10. Qxd3 {[%emt 0:00:10]} Nf6 {[%emt 0:01:09]} 11. Bd2 {[%emt 0:03:42]} Nbd7 {[%emt 0:00:22]} 12. O-O-O {[%emt 0:02:17]} Be7 {[%emt 0:00:21]} 13. Ne4 {[%emt 0:05:41]} Nxe4 {[%emt 0:00:18]} 14. Qxe4 {[%emt 0:00:07]} Nf6 {[%emt 0:00:11]} 15. Qe2 {[%emt 0:00:25]} Qd5 {[%emt 0:00:08]} 16. c4 {[%emt 0:04:42]} Qe4 {[%emt 0:00:33]} 17. Qxe4 {[%emt 0:04:24]} Nxe4 {[%emt 0:00:10]} 18. Be3 {[%emt 0:01:45]} f5 {[%emt 0:00:51]} 19. g3 {[%emt 0:08:06]} Bg5 {[%emt 0:04:49]} 20. Bxg5 {[%emt 0:21:21]} hxg5 {[%emt 0:01:11]} 21. Rh2 {[%emt 0:00:32]} Rd8 {[%emt 0:10:49]} 22. Ne5 {[%emt 0:04:54]} Nf6 {[%emt 0:02:39]} 23. Nf3 {[%emt 0:03:35]} Ng4 {[%emt 0:01:16]} 24. Rg2 {[%emt 0:00:39]} Rxh5 {[%emt 0:00:37]} 25. Re1 {[%emt 0:03:24]} Kf7 {[%emt 0:04:55]} 26. Re2 {[%emt 0:06:10]} Nf6 {[%emt 0:12:31]} 27. Rg1 {[%emt 0:03:05]} g4 {[%emt 0:05:41]} 28. Ne5+ {[%emt 0:00:27]} Kg8 {[%emt 0:00:22]} 29. Rd1 {[%emt 0:02:13]} Rh2 {[%emt 0:02:35]} 30. a3 {[%emt 0:01:42]} g5 {[%emt 0:12:21]} 31. a4 {[%emt 0:09:28]} Rg2 {[%emt 0:02:50]} 32. a5 {[%emt 0:03:51]} a6 {[%emt 0:06:21]} 33. c5 {[%emt 0:06:20]} f4 {[%emt 0:16:18]} 34. gxf4 {[%emt 0:00:30]} gxf4 {[%emt 0:00:09]} 35. Ng6 {[%emt 0:00:15]} f3 {[%emt 0:07:39]} 36. Rxe6 {[%emt 0:00:08]} Kf7 {[%emt 0:00:15]} 37. Nf4 {[%emt 0:00:17]} Rxf2 {[%emt 0:00:12]} 38. Re5 {[%emt 0:01:18]} g3 {[%emt 0:00:49]} 39. Nh3 {[%emt 0:00:28]} Rxd4 {[%emt 0:06:56]} 40. Rxd4 {[%emt 0:02:50]} Rf1+ {[%emt 0:00:26]} 41. Rd1 {[%emt 0:31:36]} Rxd1+ {[%emt 0:07:02]} 42. Kxd1 {[%emt 0:00:00]} f2 {[%emt 0:00:14]} 43. Nxf2 {[%emt 0:00:00]} gxf2 {[%emt 0:00:14]} 44. Rf5 {[%emt 0:00:00]} Ke6 {[%emt 0:00:06]} 45. Rxf2 {[%emt 0:00:00]} Ne4 {[%emt 0:00:08]} 46. Rc2 {[%emt 0:00:00]} 1/2-1/2

[Event "Int SVK-ch Open 2020"]
[Site "Drienica"]
[Date "2020.08.07"]
[Round "1.17"]
[White "Kulich, Filip"]
[Black "Tomcik, Milan"]
[Result "0-1"]
[ECO "B12"]
[WhiteElo "1397"]
[BlackElo "1963"]
[Annotator "ChessBase"]
[PlyCount "101"]
[EventDate "2020.08.07"]
[EventType "swiss"]
[EventCountry "SVK"]
[SourceTitle "playchess.com"]
[Source "ChessBase"]
[SourceQuality "1"]
[TimeControl "40/5400+30:1800+30"]

1. e4 {[%emt 0:00:00]} c6 {[%emt 0:00:00]} 2. d4 {[%emt 0:00:00]} d5 {[%emt 0:00:01]} 3. e5 {[%emt 0:00:00]} c5 {[%emt 0:01:01]} 4. c3 {[%emt 0:00:23]} Nc6 {[%emt 0:00:32]} 5. Nf3 {[%emt 0:01:38]} Bg4 {[%emt 0:00:34]} 6. Be2 {[%emt 0:00:28]} e6 {[%emt 0:00:22]} 7. O-O {[%emt 0:00:54]} Nge7 {[%emt 0:02:36]} 8. Bg5 {[%emt 0:01:21]} h6 {[%emt 0:00:17]} 9. Bh4 {[%emt 0:00:39]} Qb6 {[%emt 0:00:56]} 10. Nbd2 {[%emt 0:04:00]} Nf5 {[%emt 0:04:48]} 11. Bg3 {[%emt 0:02:48]} cxd4 {[%emt 0:03:07]} 12. cxd4 {[%emt 0:00:23]} Bxf3 {[%emt 0:09:36]} 13. Nxf3 {[%emt 0:01:19]} Nfxd4 {[%emt 0:03:01]} 14. Nxd4 {[%emt 0:02:15]} Nxd4 {[%emt 0:01:00]} 15. Bd3 {[%emt 0:00:38]} Nc6 {[%emt 0:02:29]} 16. Qa4 {[%emt 0:02:08]} Qb4 {[%emt 0:04:36]} 17. Qc2 {[%emt 0:02:12]} Be7 {[%emt 0:01:06]} 18. Rac1 {[%emt 0:01:47]} O-O {[%emt 0:02:44]} 19. a3 {[%emt 0:02:10]} Qb6 {[%emt 0:01:49]} 20. Qd2 {[%emt 0:01:55]} Bg5 {[%emt 0:01:25]} 21. Bf4 {[%emt 0:00:32]} Nxe5 {[%emt 0:09:05]} 22. Bxg5 {[%emt 0:01:53]} hxg5 {[%emt 0:00:28]} 23. Bc2 {[%emt 0:01:10]} f6 {[%emt 0:07:59]} 24. Qe2 {[%emt 0:01:57]} g6 {[%emt 0:02:06]} 25. Kh1 {[%emt 0:00:53]} Kg7 26. f4 {[%emt 0:02:06]} gxf4 {[%emt 0:08:32]} 27. Rxf4 {[%emt 0:02:13]} Qd6 {[%emt 0:01:33]} 28. Rcf1 {[%emt 0:00:40]} f5 {[%emt 0:01:59]} 29. Qd2 {[%emt 0:01:40]} Ng4 {[%emt 0:03:32]} 30. h3 {[%emt 0:03:09]} Nf6 {[%emt 0:02:24]} 31. Qf2 {[%emt 0:02:50]} Ne4 {[%emt 0:01:30]} 32. Bxe4 {[%emt 0:00:58]} dxe4 {[%emt 0:00:11]} 33. Qe3 {[%emt 0:03:47]} Rfd8 {[%emt 0:03:28]} 34. Qg3 {[%emt 0:03:32]} Rh8 {[%emt 0:02:02]} 35. Qf2 {[%emt 0:01:32]} Qb6 {[%emt 0:03:43]} 36. Qe2 {[%emt 0:06:21]} Rad8 {[%emt 0:01:49]} 37. Qc4 {[%emt 0:03:39]} Rc8 {[%emt 0:01:12]} 38. Qa4 {[%emt 0:01:29]} Rhd8 {[%emt 0:00:42]} 39. b4 {[%emt 0:03:54]} Rd3 {[%emt 0:01:50]} 40. b5 {[%emt 0:01:04]} Qc5 {[%emt 0:01:20]} 41. Qa5 {[%emt 0:31:33]} Qxa3 {[%emt 0:34:27]} 42. Qe1 {[%emt 0:00:36]} Rh8 43. Rh4 {[%emt 0:00:35]} Rxh4 {[%emt 0:01:18]} 44. Qxh4 {[%emt 0:00:17]} Qd6 {[%emt 0:02:05]} 45. Qe1 {[%emt 0:01:50]} a6 {[%emt 0:01:00]} 46. bxa6 {[%emt 0:00:52]} bxa6 {[%emt 0:00:32]} 47. Qa1+ e5 {[%emt 0:00:32]} 48. Rb1 {[%emt 0:00:45]} e3 {[%emt 0:01:01]} 49. Rb7+ {[%emt 0:00:28]} Kf6 {[%emt 0:00:33]} 50. Rb1 {[%emt 0:01:05]} e2 {[%emt 0:00:19]} 51. Qxe5+ {[%emt 0:01:14]} 0-1

[Event "Int SVK-ch Open 2020"]
[Site "Drienica"]
[Date "2020.08.07"]
[Round "1.18"]
[White "Buran Jaroslav"]
[Black "Kukan Michal"]
[Result "1-0"]
[ECO "B30"]
[WhiteElo "2098"]
[BlackElo "1775"]
[Annotator "ChessBase"]
[PlyCount "37"]
[EventDate "2020.08.07"]
[EventType "swiss"]
[EventCountry "SVK"]
[SourceTitle "playchess.com"]
[Source "ChessBase"]
[SourceQuality "1"]
[TimeControl "40/5400+30:1800+30"]

1. e4 {[%emt 0:00:00]} c5 {[%emt 0:00:00]} 2. Nf3 {[%emt 0:00:00]} Nc6 {[%emt 0:00:00]} 3. Bb5 {[%emt 0:00:26]} Nd4 {[%emt 0:01:16]} 4. Bc4 {[%emt 0:00:41]} e6 {[%emt 0:01:21]} 5. c3 {[%emt 0:00:15]} Nxf3+ {[%emt 0:04:37]} 6. Qxf3 {[%emt 0:00:09]} Ne7 {[%emt 0:03:29]} 7. O-O {[%emt 0:02:25]} d5 {[%emt 0:02:32]} 8. exd5 {[%emt 0:00:25]} exd5 {[%emt 0:00:28]} 9. Bb5+ {[%emt 0:03:54]} Nc6 {[%emt 0:01:54]} 10. Re1+ {[%emt 0:00:23]} Be6 {[%emt 0:00:49]} 11. c4 {[%emt 0:02:48]} Be7 {[%emt 0:01:42]} 12. Nc3 {[%emt 0:01:08]} d4 {[%emt 0:03:40]} 13. Bxc6+ {[%emt 0:05:10]} bxc6 {[%emt 0:00:16]} 14. Qxc6+ {[%emt 0:00:28]} Bd7 {[%emt 0:01:42]} 15. Rxe7+ {[%emt 0:00:12]} Kxe7 {[%emt 0:01:50]} 16. Nd5+ {[%emt 0:01:07]} Ke8 {[%emt 0:06:58]} 17. Nc7+ {[%emt 0:05:08]} Kf8 {[%emt 0:03:34]} 18. Qxa8 {[%emt 0:01:13]} Qxa8 {[%emt 0:00:16]} 19. Nxa8 {[%emt 0:01:03]} 1-0

[Event "Int SVK-ch Open 2020"]
[Site "Drienica"]
[Date "2020.08.07"]
[Round "1.18"]
[White "Panko, Eduard"]
[Black "Sosovickova, Martina"]
[Result "1-0"]
[ECO "C44"]
[WhiteElo "1958"]
[BlackElo "1362"]
[Annotator "ChessBase"]
[PlyCount "75"]
[EventDate "2020.08.07"]
[EventType "swiss"]
[EventCountry "SVK"]
[SourceTitle "playchess.com"]
[Source "ChessBase"]
[SourceQuality "1"]
[TimeControl "40/5400+30:1800+30"]

1. e4 {[%emt 0:00:00]} e5 {[%emt 0:00:00]} 2. Nf3 {[%emt 0:00:04]} Nc6 {[%emt 0:00:00]} 3. d4 {[%emt 0:00:14]} exd4 {[%emt 0:00:08]} 4. Bc4 {[%emt 0:00:12]} Bc5 {[%emt 0:02:06]} 5. c3 {[%emt 0:00:11]} dxc3 {[%emt 0:00:45]} 6. Bxf7+ {[%emt 0:00:15]} Kxf7 {[%emt 0:01:51]} 7. Qd5+ {[%emt 0:00:07]} Ke8 {[%emt 0:03:34]} 8. Qh5+ {[%emt 0:00:57]} Kf8 {[%emt 0:08:11]} 9. Qxc5+ {[%emt 0:01:44]} Qe7 {[%emt 0:01:46]} 10. Qf5+ {[%emt 0:03:32]} Qf6 {[%emt 0:05:12]} 11. Nxc3 {[%emt 0:00:36]} Qxf5 {[%emt 0:01:02]} 12. exf5 {[%emt 0:00:02]} Nf6 {[%emt 0:04:19]} 13. Bg5 {[%emt 0:04:25]} d6 {[%emt 0:09:18]} 14. Bxf6 {[%emt 0:01:29]} gxf6 {[%emt 0:00:50]} 15. Nd5 {[%emt 0:02:14]} Bxf5 {[%emt 0:01:29]} 16. Nxc7 {[%emt 0:06:31]} Rc8 {[%emt 0:02:54]} 17. Nb5 {[%emt 0:07:10]} Re8+ {[%emt 0:02:26]} 18. Kd2 {[%emt 0:01:52]} Rd8 {[%emt 0:04:43]} 19. Nbd4 {[%emt 0:05:06]} Bd7 {[%emt 0:07:21]} 20. Rac1 {[%emt 0:02:32]} Kf7 {[%emt 0:06:10]} 21. a3 {[%emt 0:03:39]} Rhe8 {[%emt 0:05:27]} 22. Rhe1 {[%emt 0:03:59]} Kg6 {[%emt 0:06:46]} 23. b4 {[%emt 0:05:04]} a6 {[%emt 0:03:22]} 24. Rxe8 {[%emt 0:05:42]} Rxe8 {[%emt 0:00:42]} 25. Rc3 {[%emt 0:00:21]} Re4 {[%emt 0:03:35]} 26. Rd3 {[%emt 0:06:23]} Nxd4 {[%emt 0:04:24]} 27. Nxd4 {[%emt 0:04:34]} Re5 {[%emt 0:02:10]} 28. g3 {[%emt 0:01:34]} Rd5 {[%emt 0:02:47]} 29. Kc3 {[%emt 0:02:23]} Bc6 {[%emt 0:03:42]} 30. h4 {[%emt 0:03:27]} h5 {[%emt 0:02:16]} 31. f4 {[%emt 0:04:24]} Bb5 {[%emt 0:02:01]} 32. Re3 {[%emt 0:00:56]} Kf7 {[%emt 0:00:46]} 33. Re1 {[%emt 0:02:17]} Bc6 {[%emt 0:01:04]} 34. Kc4 {[%emt 0:00:21]} b5+ {[%emt 0:00:35]} 35. Kd3 {[%emt 0:00:54]} Bb7 {[%emt 0:00:30]} 36. Rc1 {[%emt 0:00:16]} Kg6 {[%emt 0:01:04]} 37. Rc7 {[%emt 0:00:25]} Ba8 {[%emt 0:00:44]} 38. Ke3 {[%emt 0:00:44]} 1-0

[Event "Int SVK-ch Open 2020"]
[Site "Drienica"]
[Date "2020.08.07"]
[Round "1.19"]
[White "Steiniger, Florian"]
[Black "Magda, Filip"]
[Result "1-0"]
[ECO "B20"]
[WhiteElo "1951"]
[BlackElo "1266"]
[Annotator "ChessBase"]
[PlyCount "79"]
[EventDate "2020.08.07"]
[EventType "swiss"]
[EventCountry "SVK"]
[SourceTitle "playchess.com"]
[Source "ChessBase"]
[SourceQuality "1"]
[TimeControl "40/5400+30:1800+30"]

1. e4 c5 2. c4 Nc6 3. Nc3 g6 4. d3 Bg7 5. Nge2 d6 6. g3 Nf6 7. Bg2 O-O 8. O-O Bd7 9. h3 a6 10. Be3 Rb8 11. Qd2 b5 12. Rab1 bxc4 13. dxc4 Ne5 14. b3 Bxh3 15. f4 Bxg2 16. fxe5 Bxf1 17. exf6 Bxf6 18. Rxf1 Qd7 19. Nd5 Bg7 20. Bh6 Rb7 21. Rf2 Qg4 22. Rh2 f6 23. Rh4 Qe6 24. Bxg7 Kxg7 25. Qh6+ Kf7 26. Qxh7+ Ke8 27. Qxg6+ Kd8 28. Qf5 Qf7 29. Nef4 Rg8 30. Ne6+ Ke8 31. Ndc7+ Rxc7 32. Nxc7+ Kd8 33. Ne6+ Ke8 34. Kf2 a5 35. Nf4 Kd8 36. Rh7 Qe8 37. Ne6+ Kc8 38. Ng7+ Qd7 39. Qd5 Rd8 40. Ne6 1-0